Cogmind - Beta 9.1 @@@ ROGUE MODE // 2019.11.05 @ 20:02:35 Player: arsonius Result: Destroyed by G-67 Veteran with Plasma Rifle Performance ------------- Evolutions (5) 2500 Regions Visited (13) 2600 Robots Destroyed (68) 340 Value Destroyed (1843) 1843 Prototype IDs (31) 620 Alien Tech Used (0) 0 Bonus (1322) 1322 TOTAL SCORE: 9225 Bonus ------- Follower Combat Kills 48 Aligned with FarCom 300 Met Warlord at Base 500 MAIN.C Attacked Warlord 500 Friendly Fire -26 Cogmind --------- Core Integrity 0/1000 Matter 300/300 Energy 28/170 System Corruption 0% Temperature Cool (21) Location -5/Warlord Parts ------- Power (1) Micro Fission Core Propulsion (4) Makeshift Hover Unit Cooled Gravmag System Cooled Gravmag System Cesium-ion Thruster Utility (9) Medium Storage Unit Large Storage Unit High-capacity Storage Unit Experimental Optical Array Hardened Heavy Armor Plating Thermal Shield Force Field Point Defense Array Weapon (3) Dispersion Rifle Advanced Plasma Cannon Makeshift Sword Inventory (22) Neutrino Core Light Antimatter Reactor Improved Heat Sink Humpback Small Matter Pod (50) Advanced Signal Interpreter Makeshift Terrain Scanner Advanced Terrain Scan Processor Improved Target Analyzer Advanced Armor Integrity Analyzer Kinecellerator Mapping Drone Bay (3/3) Plasma Storm Matter Neutralizer Field Lobotomy Kit Signal Generator Signal Generator Peak State ------------ Power Micro Fission Core Propulsion Makeshift Hover Unit Cooled Gravmag System Cooled Gravmag System Cesium-ion Thruster Utility Medium Storage Unit Large Storage Unit High-capacity Storage Unit Experimental Optical Array Hardened Heavy Armor Plating Thermal Shield Force Field Point Defense Array Weapon Dispersion Rifle Advanced Plasma Cannon Makeshift Sword Inventory Neutrino Core Light Antimatter Reactor Improved Heat Sink Humpback Small Matter Pod Advanced Signal Interpreter Makeshift Terrain Scanner Advanced Terrain Scan Processor Improved Target Analyzer Advanced Armor Integrity Analyzer Kinecellerator Mapping Drone Bay Plasma Storm Matter Neutralizer Field Lobotomy Kit Signal Generator Signal Generator [Rating: 91] Favorites ----------- Power Light Nuclear Core Engine Light Ion Engine Power Core Light Nuclear Core Propulsion Armored Huge Wheel Treads Armored Treads Leg Aluminum Leg Wheel Armored Huge Wheel Hover Unit Cooled Gravmag System Flight Unit Cesium-ion Thruster Utility High-capacity Storage Unit Device Improved Terrain Scanner Storage High-capacity Storage Unit Processor Advanced Terrain Scan Processor Protection Improved Medium Armor Plating Weapon Gauss Rifle Energy Gun High-powered Shock Rifle Energy Cannon Heavy Phase Cannon Ballistic Gun Gauss Rifle Ballistic Cannon Light Cannon Launcher Rocket Launcher Special Weapon Mining Laser Slashing Weapon Makeshift Sword Build | -11 -10 -10 -9 -9 -9 -8 -8 -7 -6 -5 -5 -5 -5 ------- Run | Scr Mat Min Mat Min Exi Min Mat Fac Fac Fac Upp Upp War Slots Evolved 10 | . . . 2 . . . 2 2 2 2 . . . Power . | . . . . . . . . . . . . . . Propulsion 2 | . . . 1 . . . . . 1 . . . . Utility 7 | . . . 1 . . . 2 2 . 2 . . . Weapon 1 | . . . . . . . . . 1 . . . . Parts Attached 186 | 6 7 3 15 9 4 3 9 35 18 53 7 6 11 Power 14 | 1 . 1 2 1 . . . 3 . 5 . . 1 Engine 10 | 1 . 1 2 . . . . 2 . 4 . . . Core 4 | . . . . 1 . . . 1 . 1 . . 1 Reactor . | . . . . . . . . . . . . . . Propulsion 40 | 2 1 2 4 5 . . 1 7 1 14 1 1 1 Treads 3 | . . . . . . . 1 2 . . . . . Leg 9 | 2 1 . 2 4 . . . . . . . . . Wheel 3 | . . . . . . . . 1 1 1 . . . Hover 23 | . . 2 2 1 . . . 3 . 13 1 1 . Flight 2 | . . . . . . . . 1 . . . . 1 Utility 91 | 1 2 . 4 1 3 3 2 21 13 26 4 2 9 Device 48 | . 1 . 2 1 1 2 2 9 9 13 2 2 4 Storage 17 | 1 1 . . . 1 . . 4 2 3 1 . 4 Processor 11 | . . . 2 . 1 1 . 3 . 3 1 . . Hackware . | . . . . . . . . . . . . . . Protection 15 | . . . . . . . . 5 2 7 . . 1 Artifact . | . . . . . . . . . . . . . . Weapon 41 | 2 4 . 5 2 1 . 6 4 4 8 2 3 . Energy Gun 14 | 1 . . 2 1 . . . 2 2 4 1 1 . Energy Cannon 7 | . 1 . . . . . 2 . . 3 1 . . Ballistic Gun 9 | 1 1 . 1 . 1 . 1 2 2 . . . . Ballistic Cannon 5 | . 2 . 2 . . . . . . 1 . . . Launcher 1 | . . . . 1 . . . . . . . . . Special Weapon 4 | . . . . . . . 3 . . . . 1 . Impact Weapon . | . . . . . . . . . . . . . . Slashing Weapon 1 | . . . . . . . . . . . . 1 . Piercing Weapon . | . . . . . . . . . . . . . . Special Melee Weapon . | . . . . . . . . . . . . . . Unidentified Prototypes 6 | . . . 2 . . . . 3 . 1 . . . Parts Lost 45 | . 1 . 6 2 . 1 4 1 . 26 4 . . Power 4 | . . . 1 1 . . . . . 2 . . . Propulsion 13 | . . . 3 . . . 1 . . 8 1 . . Utility 14 | . . . 1 1 . 1 . 1 . 8 2 . . Weapon 14 | . 1 . 1 . . . 3 . . 8 1 . . Highest Loss Streak 15 | . 1 . 3 1 . 1 3 1 . 15 4 . . Average Slot Usage (%) 89 | . 99 100 90 99 100 99 97 93 86 85 60 71 90 Engine 2 | . 14 14 7 . . . . 6 . 1 . . . Core 4 | . . . . 10 11 11 9 . 6 3 . . 4 Treads 1 | . . . . . . . . 6 . . . . . Leg 8 | . 28 9 11 23 33 33 26 . . . . . . Wheel 4 | . . . . . . . . 4 13 9 . . . Hover 6 | . . 18 20 9 . . . 5 . 1 16 16 17 Device 14 | . 13 14 12 10 11 10 24 25 11 15 8 7 8 Storage 13 | . 14 14 11 11 11 11 9 11 18 16 8 11 16 Processor 13 | . . . 5 11 11 11 9 12 11 15 20 23 21 Protection 1 | . . . . . . . . 1 4 2 . . . Energy Gun 5 | . 10 . 8 9 . . . 6 7 6 3 2 5 Energy Cannon 2 | . 1 14 . . . . 6 . . 4 . 5 5 Ballistic Gun 6 | . 9 . . 11 11 11 9 7 11 1 . . . Ballistic Cannon 1 | . 7 14 12 . . . . . . 1 . . . Launcher 1 | . . . . 1 11 11 . . . . . . . Naked Turns . | . . . . . . . . . . . . . . Heaviest Build 151 | 10 18 18 22 21 21 21 27 87 103 130 35 45 151 Greatest Support 59 | 20 20 20 23 33 33 33 33 28 56 59 51 34 51 Greatest Overweight (x) 14 | 1 . 1 3 3 . . . 3 1 14 11 2 2 Average Overweight (x) . | . . . . . . . . 1 1 1 1 1 1 Largest Inventory Capacity 42 | 6 8 8 8 8 8 8 8 20 24 26 14 14 42 Average Capacity 16 | 5 7 8 8 8 8 8 8 14 22 23 11 14 28 Most Carried 28 | 6 8 8 8 8 8 8 8 20 24 26 10 14 28 Average Carried 14 | 3 7 7 7 7 7 7 7 14 22 22 8 11 20 Final Capacity 24 | 6 8 8 8 8 8 8 8 20 24 8 14 14 22 Final Carried 24 | 3 8 8 8 8 8 8 5 20 24 8 9 13 22 Class Distribution -------------------- 22% | Mutant 21% | Hauler-Skirmisher 18% | Scavenger-Mutant 15% | Hauler-Mutant 7% | Hauler-Assassin 6% | Scavenger-Skirmisher 3% | Scavenger-Scout Dominant Class ---------------- Mutant | -10/Materials Mutant | -10/Mines Scavenger-Mutant | -9/Materials Scavenger-Mutant | -9/Mines Scavenger-Mutant | -9/Exiles Scavenger-Mutant | -8/Mines Scavenger-Skirmisher | -8/Materials Hauler-Skirmisher | -7/Factory Hauler-Skirmisher | -6/Factory Hauler-Skirmisher | -5/Factory Mutant | -5/Upper Caves Mutant | -5/Upper Caves Hauler-Assassin | -5/Warlord Resources | -11 -10 -10 -9 -9 -9 -8 -8 -7 -6 -5 -5 -5 -5 ----------- Run | Scr Mat Min Mat Min Exi Min Mat Fac Fac Fac Upp Upp War Matter Collected 2628 | 218 164 78 267 135 30 107 . 447 187 425 175 40 355 Remotely . | . . . . . . . . . . . . . . Salvage Created 1998 | . 263 114 396 310 . 138 . 331 45 401 . . . Parts 150 | . 21 14 23 23 . 17 . 21 7 24 . . . Haulers Intercepted 4 | . . . 2 . . . . 2 . . . . . Recyclers Shooed 7 | . 3 . 3 . . . . . . 1 . . . Parts Field Recycled 3 | . . . . . . . . 3 . . . . . Retrieved Matter 35 | . . . . . . . . 35 . . . . . Parts Self-Destructed 102 | . . . . . . . . . . . . . 102 Prevented 21 | . . . . . . . . . . . . 3 18 Kills | -11 -10 -10 -9 -9 -9 -8 -8 -7 -6 -5 -5 -5 -5 ------- Run | Scr Mat Min Mat Min Exi Min Mat Fac Fac Fac Upp Upp War Combat Hostiles Destroyed 52 | . 6 9 10 9 . 3 . 4 1 10 . . . Guns 22 | . 2 . 5 8 . . . 4 1 2 . . . Cannons 25 | . 4 9 5 . . . . . . 7 . . . AOE 4 | . . . . 1 . 3 . . . . . . . Classes Destroyed 13 | . 5 . 2 2 . 2 . 1 . 1 . . . Worker 1 | . . . . . . 1 . . . . . . . Builder 1 | . . . . . . 1 . . . . . . . Tunneler 3 | . . . . 1 . 2 . . . . . . . Hauler 4 | . . . 2 . . . . 2 . . . . . Recycler 2 | . 1 . . . . . . 1 . . . . . Operator 1 | . 1 . . . . . . . . . . . . Watcher 4 | . 2 . 2 . . . . . . . . . . Swarmer 24 | . 3 9 4 4 . . . . . 4 . . . Grunt 15 | . 3 . 5 4 . 3 . . . . . . . Brawler 1 | . . . . 1 . . . . . . . . . Duelist 1 | . . . 1 . . . . . . . . . . Sentry 1 | . . . . . . . . . . 1 . . . Programmer 10 | . . . . . . . . 4 1 5 . . . Best Kill Streak 6 | . 3 3 6 3 . 5 . 1 1 2 . . . Combat Bots Only 5 | . 3 3 5 3 . 3 . 1 1 2 . . . Max Kills in Single Turn 2 | . 1 1 1 1 . 2 . 1 1 1 . . . Gunslinging . | . . . . . . . . . . . . . . Exploded 1 | . . . . 1 . 1 . . . . . . . Melee . | . . . . . . . . . . . . . . Uniques/NPCs Destroyed . | . . . . . . . . . . . . . . Combat | -11 -10 -10 -9 -9 -9 -8 -8 -7 -6 -5 -5 -5 -5 -------- Run | Scr Mat Min Mat Min Exi Min Mat Fac Fac Fac Upp Upp War Damage Taken 7965 | . 231 207 461 319 . 85 606 436 62 4756 647 . 155 Core 1273 | . 27 31 47 60 . . 76 28 . 750 221 . 33 Absorbed by Shields 25 | . . . . . . . . . . . . . 25 Core Remaining (%) 88 | 100 . 76 . . . 73 86 96 100 . . . . Volleys Fired 313 | . 54 21 59 25 . 11 11 31 3 95 . 1 2 Largest 3 | . 2 1 2 1 . 1 1 2 3 3 . 1 1 Hottest 188 | . 70 60 100 45 . 33 100 89 113 188 . . 88 Shots Fired 367 | . 58 21 65 25 . 11 11 53 7 107 3 3 3 Gun 203 | . 33 . 32 25 . 4 . 53 7 42 3 1 3 Cannon 145 | . 25 21 33 . . . . . . 65 . 1 . Launcher 7 | . . . . . . 7 . . . . . . . Special 12 | . . . . . . . 11 . . . . 1 . Kinetic 166 | . 24 4 33 15 . 4 . 31 4 51 . . . Thermal 125 | . 34 17 21 . . . 11 22 . 15 . 2 3 Explosive 7 | . . . . . . 7 . . . . . . . Electromagnetic 68 | . . . 11 10 . . . . 3 41 3 . . Robot Hit Streak 14 | . 5 3 6 14 . 7 . 11 5 12 . 1 1 Robot Miss Streak 12 | . 6 2 6 1 . 2 . 5 1 12 2 1 1 Penetration Max . | . . . . . . . . . . . . . . Secondary Targets . | . . . . . . . . . . . . . . Shots Hit Robots 225 | . 32 13 46 24 . 8 . 32 6 61 . 1 2 Core Hits 107 | . 15 9 19 14 . 12 2 11 2 21 . . 2 Critical Hits 4 | . . . 1 1 . . . . . 2 . . . Critical Kills 1 | . . . . 1 . . . . . . . . . Critical Parts Destroyed 3 | . . . 1 . . . . . . 2 . . . Melee Attacks . | . . . . . . . . . . . . . . Impact . | . . . . . . . . . . . . . . Slashing . | . . . . . . . . . . . . . . Piercing . | . . . . . . . . . . . . . . Sneak Attacks . | . . . . . . . . . . . . . . Combat Hostiles . | . . . . . . . . . . . . . . Follow-up Attacks . | . . . . . . . . . . . . . . Damage Inflicted 5280 | . 536 266 932 507 . 416 7 863 176 1526 . . 51 Guns 2519 | . 215 . 393 436 . 61 . 863 127 373 . . 51 Cannons 2204 | . 321 266 498 . . . . . . 1119 . . . Explosions 515 | . . . 41 71 . 354 . . 49 . . . . Melee . | . . . . . . . . . . . . . . Ramming 42 | . . . . . . 1 7 . . 34 . . . Kinetic 2598 | . 266 54 498 220 . 61 . 478 112 909 . . . Thermal 1700 | . 270 212 259 71 . . . 385 49 403 . . 51 Explosive 354 | . . . . . . 354 . . . . . . . Electromagnetic 586 | . . . 175 216 . . . . 15 180 . . . Impact . | . . . . . . . . . . . . . . Slashing . | . . . . . . . . . . . . . . Piercing . | . . . . . . . . . . . . . . Highest Corruption 33 | . 1 1 . 2 2 2 . . . 22 22 22 33 Average Corruption 8 | . 1 1 . 2 2 2 . . . 6 22 22 27 Corruption Purged 7 | . . . . . . . . . . 7 . . . Effects 155 | . . 4 . . 7 9 . . . 45 53 30 7 Message Errors 22 | . . . . . 2 2 . . . 3 9 6 . Matter Fused 23 | . . . . . . . . . . 10 6 6 1 Heat Flow Errors 17 | . . . . . 3 1 . . . 4 5 2 2 Energy Discharges 10 | . . 2 . . . 2 . . . 1 3 2 . Parts Rejected 1 | . . . . . . . . . . . 1 . . Data Loss (minor) 25 | . . 1 . . 2 4 . . . 7 7 4 . Data Loss (major) 6 | . . . . . . . . . . 3 2 . 1 Misfires 7 | . . . . . . . . . . 1 3 2 1 Alerts 2 | . . . . . . . . . . . 1 . 1 Misdirections 34 | . . . . . . . . . . 9 16 8 1 Targeting Errors 7 | . . 1 . . . . . . . 6 . . . Weapon Failures 1 | . . . . . . . . . . 1 . . . Overload Shots . | . . . . . . . . . . . . . . Overflow Damage 102 | . 11 . . . . . . . 19 72 . . . Projectiles 83 | . 11 . . . . . . . . 72 . . . Explosions 19 | . . . . . . . . . 19 . . . . Melee . | . . . . . . . . . . . . . . Knockbacks 14 | . 2 . 3 . . . . . . 9 . . . Impact . | . . . . . . . . . . . . . . Kinetic 14 | . 2 . 3 . . . . . . 9 . . . Secondary . | . . . . . . . . . . . . . . Self-Inflicted Damage 91 | . . . . 25 . . 3 . 48 15 . . . Shots 2 | . . . . 1 . . . . 1 . . . . Rammed 9 | . . . . . . . 2 . . 7 . . . Targets Rammed 11 | . . . . . . 1 3 . . 7 . . . Kicked 2 | . . . . . . 1 1 . . . . . . Crushed . | . . . . . . . . . . . . . . Highest Temperature 312 | . 90 192 178 56 270 202 51 228 84 312 212 116 251 Average Temperature 90 | . 24 81 66 29 124 85 16 88 39 145 91 41 82 Received Heat Transfer 756 | . 54 . 183 93 . 45 180 . . 144 . . 57 Effects 3 | . . . . . 1 . . . . 2 . . . Energy Bleed 3 | . . . . . 1 . . . . 2 . . . Siege Activations . | . . . . . . . . . . . . . . Robots Corrupted . | . . . . . . . . . . . . . . Combat Hostiles . | . . . . . . . . . . . . . . Parts Fried 1 | . . . . 1 . . . . . . . . . Impact Corruptions . | . . . . . . . . . . . . . . Robots Melted . | . . . . . . . . . . . . . . Combat Hostiles . | . . . . . . . . . . . . . . Parts Melted 4 | . . 1 . . . . . 3 . . . . . Heat Transferred 2925 | . 740 444 605 50 . . . 592 50 370 . . 74 Parts Sabotaged . | . . . . . . . . . . . . . . Parts Stolen . | . . . . . . . . . . . . . . Parts Stripped . | . . . . . . . . . . . . . . Power Chain Reactions 3 | . . . 1 1 . . . . 1 . . . . Missiles Intercepted . | . . . . . . . . . . . . . . Alert | -11 -10 -10 -9 -9 -9 -8 -8 -7 -6 -5 -5 -5 -5 ------- Run | Scr Mat Min Mat Min Exi Min Mat Fac Fac Fac Upp Upp War Peak Influence 305 | . 119 238 305 155 . 98 64 81 46 133 . . . Average Influence 35 | . 40 122 225 63 . 16 15 16 7 27 . . . Maximum Alert Level 1 | . . 1 1 . . . . . . . . . . Low Security (%) 96 | . . . . . . . . . . . . . . Level 1 3 | . . . . . . . . . . . . . . Level 2 . | . . . . . . . . . . . . . . Level 3 . | . . . . . . . . . . . . . . Level 4 . | . . . . . . . . . . . . . . Level 5 . | . . . . . . . . . . . . . . High Security . | . . . . . . . . . . . . . . Max Security . | . . . . . . . . . . . . . . Squads Dispatched 18 | . 2 . . . . . 3 3 3 7 . . . Investigation 1 | . . . . . . . 1 . . . . . . Extermination 9 | . . . . . . . . 3 2 4 . . . Reinforcement 5 | . 2 . . . . . 2 . 1 . . . . Assault . | . . . . . . . . . . . . . . Garrison 3 | . . . . . . . . . . 3 . . . Intercept . | . . . . . . . . . . . . . . Construction Impeded . | . . . . . . . . . . . . . . Haulers Reinforced . | . . . . . . . . . . . . . . Stealth | -11 -10 -10 -9 -9 -9 -8 -8 -7 -6 -5 -5 -5 -5 --------- Run | Scr Mat Min Mat Min Exi Min Mat Fac Fac Fac Upp Upp War Distress Signals 12 | . 3 . 2 1 . . 4 . . 2 . . . Communications Jammed . | . . . . . . . . . . . . . . Distress Signals . | . . . . . . . . . . . . . . Times Spotted 131 | . 17 9 14 10 . 6 17 5 2 20 9 2 20 Peak Tracking Total 14 | . 4 3 8 3 . 3 14 2 2 10 5 1 12 Tactical Retreats 11 | . 3 . 1 . . . 2 1 . 2 1 . 1 Traps | -11 -10 -10 -9 -9 -9 -8 -8 -7 -6 -5 -5 -5 -5 ------- Run | Scr Mat Min Mat Min Exi Min Mat Fac Fac Fac Upp Upp War Traps Triggered 7 | . 1 . . . . . . 2 . 4 . . . Indirectly . | . . . . . . . . . . . . . . Trap Hack Attempts . | . . . . . . . . . . . . . . Triggered . | . . . . . . . . . . . . . . Disarmed . | . . . . . . . . . . . . . . Reprogrammed . | . . . . . . . . . . . . . . Reused . | . . . . . . . . . . . . . . Traps Extracted . | . . . . . . . . . . . . . . Installed . | . . . . . . . . . . . . . . Triggered 8 | . . . . . . . . . . . . . 8 Machines | -11 -10 -10 -9 -9 -9 -8 -8 -7 -6 -5 -5 -5 -5 ---------- Run | Scr Mat Min Mat Min Exi Min Mat Fac Fac Fac Upp Upp War Machines Disabled 2 | . . . . . . . . . . 2 . . . Max in Single Turn 1 | . . . . . . . . . . 1 . . . Machines Sabotaged . | . . . . . . . . . . . . . . Garrisons Compromised . | . . . . . . . . . . . . . . Overloaded Fab Kills . | . . . . . . . . . . . . . . Fab Network Shutdowns . | . . . . . . . . . . . . . . Hacking | -11 -10 -10 -9 -9 -9 -8 -8 -7 -6 -5 -5 -5 -5 --------- Run | Scr Mat Min Mat Min Exi Min Mat Fac Fac Fac Upp Upp War Machines Accessed 27 | . . 1 . . 4 . 4 4 4 5 . 1 4 Terminals 15 | . . 1 . . . . 4 3 3 4 . . . Fabricators . | . . . . . . . . . . . . . . Repair Stations 1 | . . . . . . . . 1 . . . . . Recycling Units . | . . . . . . . . . . . . . . Scanalyzers 2 | . . . . . . . . . 1 1 . . . Garrison Access . | . . . . . . . . . . . . . . Total Hacks 64 | . . 4 . . 12 . 11 8 11 9 . 1 8 Successful 36 | . . 1 . . 12 . 4 3 3 4 . 1 8 Failed 28 | . . 3 . . . . 7 5 8 5 . . . Catastrophic 1 | . . . . . . . 1 . . . . . . Database Lockouts . | . . . . . . . . . . . . . . Manual 11 | . . 4 . . 1 . 4 2 . . . . . Terminals 38 | . . 4 . . . . 11 6 9 8 . . . Fabricators . | . . . . . . . . . . . . . . Repair Stations 2 | . . . . . . . . 2 . . . . . Recycling Units . | . . . . . . . . . . . . . . Scanalyzers 3 | . . . . . . . . . 2 1 . . . Garrison Access . | . . . . . . . . . . . . . . Terminal Hacks 32 | . . 1 . . 12 . 2 1 3 4 . 1 8 Record 26 | . . . . . 11 . . 1 3 4 . . 7 Part Schematic 1 | . . 1 . . . . . . . . . . . Robot Analysis 1 | . . . . . . . 1 . . . . . . Open Door 2 | . . . . . . . . . . . . 1 1 Branch Access Points 1 | . . . . . . . 1 . . . . . . EX-Prototype ID Bank 1 | . . . . . 1 . . . . . . . . Fabricator Hacks . | . . . . . . . . . . . . . . Repair Station Hacks 2 | . . . . . . . . 2 . . . . . Scan Component 1 | . . . . . . . . 1 . . . . . Repair 1 | . . . . . . . . 1 . . . . . Recycling Unit Hacks . | . . . . . . . . . . . . . . Scanalyzer . | . . . . . . . . . . . . . . Garrison Access Hacks . | . . . . . . . . . . . . . . Unauthorized Hacks 6 | . . . . . . . 6 . . . . . . Terminals 2 | . . . . . . . 2 . . . . . . Assimilate 2 | . . . . . . . 2 . . . . . . Fabricators . | . . . . . . . . . . . . . . Repair Stations . | . . . . . . . . . . . . . . Recycling Units . | . . . . . . . . . . . . . . Scanalyzers . | . . . . . . . . . . . . . . Garrison Access . | . . . . . . . . . . . . . . Data Cores Recovered . | . . . . . . . . . . . . . . Used . | . . . . . . . . . . . . . . Hacking Detections 18 | . . 1 . . . . 4 4 4 5 . . . Full Trace Events 2 | . . 1 . . . . 1 . . . . . . Feedback Events . | . . . . . . . . . . . . . . Feedback Blocked . | . . . . . . . . . . . . . . Robot Schematics Acquired . | . . . . . . . . . . . . . . Robots Built . | . . . . . . . . . . . . . . Matter . | . . . . . . . . . . . . . . Time . | . . . . . . . . . . . . . . Total Robot Build Rating . | . . . . . . . . . . . . . . Part Schematics Acquired 1 | . . 1 . . . . . . . . . . . Parts Built . | . . . . . . . . . . . . . . Matter . | . . . . . . . . . . . . . . Time . | . . . . . . . . . . . . . . Total Part Build Rating . | . . . . . . . . . . . . . . Parts Repaired 1 | . . . . . . . . 1 . . . . . Time 22 | . . . . . . . . 22 . . . . . Parts Recycled . | . . . . . . . . . . . . . . Recycled Matter . | . . . . . . . . . . . . . . Retrieved Matter . | . . . . . . . . . . . . . . Retrieved Components . | . . . . . . . . . . . . . . Parts Scanalyzed . | . . . . . . . . . . . . . . Part Schematics Acquired . | . . . . . . . . . . . . . . Parts Damaged . | . . . . . . . . . . . . . . Bothacking | -11 -10 -10 -9 -9 -9 -8 -8 -7 -6 -5 -5 -5 -5 ------------ Run | Scr Mat Min Mat Min Exi Min Mat Fac Fac Fac Upp Upp War Used RIF Installer . | . . . . . . . . . . . . . . Robots Hacked . | . . . . . . . . . . . . . . Non-combat . | . . . . . . . . . . . . . . Combat . | . . . . . . . . . . . . . . Robot Hacks Applied . | . . . . . . . . . . . . . . Relay Couplers Released . | . . . . . . . . . . . . . . Robots Rewired . | . . . . . . . . . . . . . . Allies Hacked . | . . . . . . . . . . . . . . Hacks Repelled . | . . . . . . . . . . . . . . Allies | -11 -10 -10 -9 -9 -9 -8 -8 -7 -6 -5 -5 -5 -5 -------- Run | Scr Mat Min Mat Min Exi Min Mat Fac Fac Fac Upp Upp War Total Allies 2 | . . . . . . . 1 . . . . 1 . Largest Group 1 | . . . . . . . 1 . . . . 1 1 Highest-Rated Group 54 | . . . . . . . 10 . . . . 54 54 Highest-Rated Ally 54 | . . . . . . . 10 . . . . 54 54 Total Orders 79 | . . . . . . . 3 . . 64 . 8 4 STAY 4 | . . . . . . . 1 . . 3 . . . GOTO 58 | . . . . . . . 1 . . 52 . 4 1 FOLLOW 14 | . . . . . . . 1 . . 9 . 4 . EXPLORE 3 | . . . . . . . . . . . . . 3 Ally Attacks 3 | . . . . . . . . . . . . 3 . Total Damage 123 | . . . . . . . . . . . . 123 . Kills 1 | . . . . . . . . . . . . 1 . Allies Corrupted 1 | . . . . . . . . . . . . . 1 Allies Melted 2 | . . . . . . . . . . . . . 2 Field Lobotomies 1 | . . . . . . . . . . . . 1 . Intel | -11 -10 -10 -9 -9 -9 -8 -8 -7 -6 -5 -5 -5 -5 ------- Run | Scr Mat Min Mat Min Exi Min Mat Fac Fac Fac Upp Upp War Robot Analysis Total 1 | . . . . . . . 1 . . . . . . Derelict Logs Recovered 7 | . . . . 3 . . . . . . 2 2 . Drone Launches 26 | . . . . . . . . . . 20 . . 6 Drone Recoveries . | . . . . . . . . . . . . . . Exploration | -11 -10 -10 -9 -9 -9 -8 -8 -7 -6 -5 -5 -5 -5 ------------- Run | Scr Mat Min Mat Min Exi Min Mat Fac Fac Fac Upp Upp War Turns Passed 13771 | 51 554 289 406 1321 725 748 726 2103 1742 2602 798 454 1252 Spaces Moved 9679 | 37 298 204 241 768 596 552 443 1675 1354 1778 696 381 656 Core 164 | 17 . . . . . . . . . 4 143 . . Treads 111 | . . . . . . . . 111 . . . . . Legs 2740 | 20 298 65 93 673 596 552 443 . . . . . . Wheels 3932 | . . . . . . . . 1002 1354 1576 . . . Hover 2732 | . . 139 148 95 . . . 562 . 198 553 381 656 Flight . | . . . . . . . . . . . . . . Fastest Speed 42 | 50 120 116 52 120 120 120 120 76 110 42 42 46 45 Average Speed 114 | 97 120 117 101 137 120 120 120 107 110 108 99 111 132 Slowest Speed 750 | 120 120 120 250 260 120 120 120 170 110 750 600 150 157 Overloaded Moves . | . . . . . . . . . . . . . . Propulsion Burnouts . | . . . . . . . . . . . . . . Robots Hopped . | . . . . . . . . . . . . . . Cave-ins Triggered . | . . . . . . . . . . . . . . Exploration Rate (%) 47 | 3 36 30 12 81 80 83 25 31 28 41 80 54 87 Regions Visited 13 Branch Regions 7 Pre-discovered Areas 5 | . . . . 3 1 . . . . . . 1 . Known Exits Taken 2 | . . . . . . . . . . . 1 1 . Unknown Exits Taken 11 | 1 1 1 1 1 1 1 1 1 1 1 . . . Scrap Searched 5 | . . . . 1 . 1 . . . . 2 1 . Spaces Dug 11 | . . . . . . . 11 . . . . . . Terrain Destroyed 87 | . . . 6 . . 40 11 . 3 26 . 1 . Melee . | . . . . . . . . . . . . . . Projectile 42 | . . . 4 . . . 11 . . 26 . 1 . AOE 45 | . . . 2 . . 40 . . 3 . . . . Actions | -11 -10 -10 -9 -9 -9 -8 -8 -7 -6 -5 -5 -5 -5 --------- Run | Scr Mat Min Mat Min Exi Min Mat Fac Fac Fac Upp Upp War Total 12050 | 51 440 233 339 1012 608 626 604 1939 1603 2343 800 408 1044 Wait 1555 | 1 56 1 3 194 . 56 130 134 194 344 90 12 340 Move 9666 | 36 297 203 240 767 595 551 442 1674 1353 1777 695 380 656 Hop . | . . . . . . . . . . . . . . Pick Up 169 | 8 15 2 11 8 4 2 4 36 17 27 8 8 19 Fast Attach 36 | 1 1 . 7 . . 1 2 9 6 8 . . 1 Attach 81 | 5 2 . 6 2 2 1 5 7 3 25 7 6 10 Detach 9 | . . . . . . . 1 2 . 2 . 1 3 Swap 69 | . 4 3 2 7 2 1 2 19 9 20 . . . Drop 128 | . 10 3 11 9 5 2 4 27 18 28 . . 11 Fire 313 | . 54 21 59 25 . 11 11 31 3 95 . 1 2 Melee . | . . . . . . . . . . . . . . Ram 7 | . . . . . . . . . . 7 . . . Kick 4 | . . . . . . 1 3 . . . . . . Crush . | . . . . . . . . . . . . . . Escape Stasis . | . . . . . . . . . . . . . . Rewire 1 | . 1 . . . . . . . . . . . . Trap . | . . . . . . . . . . . . . . Miscellaneous 12 | . . . . . . . . . . 10 . . 2 Route ------- -11/Scrapyard -10/Materials -10/Mines -9/Materials -9/Mines (discovered 3 exits: *Mat x2 / *Exi) -9/Exiles (discovered 2 exits: [*Min x2]) -8/Mines -8/Materials -7/Factory (discovered 2 exits: *Fac / [*Low]) -6/Factory (discovered 2 exits: *Fac x2) -5/Factory (discovered 4 exits: *Fac x3 / [*Upp]) -5/Upper Caves -5/Upper Caves -5/Warlord (discovered 1 exit: [*Pro]) History --------- Turn | Location | Event 14 | -11/Scrapyard | Discovered new exit (range 15) 52 | -11/Scrapyard | Entered Materials 310 | -10/Materials | Build established: Mutant 439 | -10/Materials | Discovered new exit (range 9) 606 | -10/Materials | Entered Mines 851 | -10/Mines | Discovered new exit (range 11) 895 | -10/Mines | Entered Materials 895 | -9/Materials | Evolved 2 slots: Propulsion x1, Utility x1 1135 | -9/Materials | Lost 3 parts (1p1n1w) 1245 | -9/Materials | Discovered new exit (range 10) 1301 | -9/Materials | Entered Mines 1323 | -9/Mines | Assembled infested the area 1336 | -9/Mines | Learned location of Recycling (-7) 1407 | -9/Mines | Received a Rocket Launcher from a helpful Derelict 1534 | -9/Mines | Build established: Scavenger-Mutant 1783 | -9/Mines | A weapon hastily lodged in a ceiling crevice suddenly fell to the ground 2167 | -9/Mines | Learned location of Zion (-7) 2231 | -9/Mines | Learned location of Storage (-7) 2335 | -9/Mines | Discovered new exit (range 5) 2407 | -9/Mines | Discovered new exit (range 9) 2587 | -9/Mines | Learned Materials security intel 2603 | -9/Mines | Deemed a non-threat by the Exiles lab entrance 2603 | -9/Mines | Discovered new exit (range 5) 2610 | -9/Mines | Build established: Mutant 2622 | -9/Mines | Entered Exiles 2639 | -9/Exiles | Discovered new exit (range 14) 2667 | -9/Exiles | Met 8R-AWN 2684 | -9/Exiles | Met EX-HEX 2738 | -9/Exiles | Met EX-DEC 2772 | -9/Exiles | Met EX-BIN 2789 | -9/Exiles | Aligned with FarCom system 2790 | -9/Exiles | Given EX-Vault access code 2818 | -9/Exiles | Opened EX-Vault 2858 | -9/Exiles | Warned to stay clear of 0b10 Research branches 2904 | -9/Exiles | Found Field Lobotomy Kit 3090 | -9/Exiles | Visited The Gauntlet 3200 | -9/Exiles | Build established: Scavenger-Mutant 3331 | -9/Exiles | Discovered new exit (range 12) 3347 | -9/Exiles | Left Exiles lab with Field Lobotomy Kit 3347 | -9/Exiles | Entered Mines 3636 | -8/Mines | Build established: Scavenger-Skirmisher 3819 | -8/Mines | Discovered new exit (range 15) 3953 | -8/Mines | Build established: Scavenger-Mutant 4095 | -8/Mines | Entered Materials 4095 | -8/Materials | Evolved 2 slots: Utility x2 4400 | -8/Materials | Build established: Scavenger-Skirmisher 4805 | -8/Materials | Discovered new exit (range 12) 4821 | -8/Materials | Entered Factory 4821 | -7/Factory | Evolved 2 slots: Utility x2 4848 | -7/Factory | Lost 3 parts (1n2w) 5454 | -7/Factory | Discovered new exit (range 16) 5769 | -7/Factory | Discovered new exit (range 14) 5854 | -7/Factory | Build established: Mutant 6190 | -7/Factory | Build established: Hauler-Mutant 6237 | -7/Factory | Repaired Gravmag System? 6680 | -7/Factory | Build established: Hauler-Skirmisher 6924 | -7/Factory | Entered another Factory area 6924 | -6/Factory | Evolved 2 slots: Propulsion x1, Weapon x1 6975 | -6/Factory | Discovered new exit (range 4) 8051 | -6/Factory | Discovered new exit (range 14) 8117 | -6/Factory | Build established: Hauler-Mutant 8624 | -6/Factory | Build established: Hauler-Skirmisher 8666 | -6/Factory | Entered another Factory area 8666 | -5/Factory | Evolved 2 slots: Utility x2 8933 | -5/Factory | Discovered new exit (range 14) 9270 | -5/Factory | Build established: Hauler-Mutant 9307 | -5/Factory | Identified exit to Factory 9329 | -5/Factory | Garrison activated, responded to threat 9797 | -5/Factory | Build established: Hauler-Skirmisher 10233 | -5/Factory | Discovered exit to Factory (range 10) 10598 | -5/Factory | Build established: Hauler-Mutant 10883 | -5/Factory | Discovered exit to Factory (range 157) 11024 | -5/Factory | System corruption reached 10% 11091 | -5/Factory | Lost 7 parts (1n2u4w) 11189 | -5/Factory | Core integrity fell below 50% 11203 | -5/Factory | Discovered new exit (range 10) 11268 | -5/Factory | Entered Upper Caves 11271 | -5/Upper Caves | Lost 15 parts (2p7n4u2w) 11336 | -5/Upper Caves | Learned Factory emergency access door positions 11791 | -5/Upper Caves | Learned Factory interactive machine intel 12029 | -5/Upper Caves | Core integrity fell below 20% 12062 | -5/Upper Caves | Discovered new exit (range 10) 12065 | -5/Upper Caves | Identified exit to Upper Caves 12066 | -5/Upper Caves | Entered another Upper Caves area 12067 | -5/Upper Caves | Assimilated P-70 Sage with FLK Orb 12090 | -5/Upper Caves | Lost 4 parts (1n2u1w) 12132 | -5/Upper Caves | Build established: Mutant 12202 | -5/Upper Caves | Learned 12 Factory zone layouts 12370 | -5/Upper Caves | Encountered a Warlord checkpoint 12460 | -5/Upper Caves | Discovered new exit (range 10) 12474 | -5/Upper Caves | Identified exit to Warlord 12498 | -5/Upper Caves | Learned location of Armory (-4) 12520 | -5/Upper Caves | Entered Warlord 12520 | -5/Warlord | Accompanied by 1 ally 12591 | -5/Warlord | Discovered new exit (range 15) 12593 | -5/Warlord | System corruption reached 30% 12605 | -5/Warlord | Build established: Derelict-Assassin 12645 | -5/Warlord | System corruption cleaned by Quarantine Array 12914 | -5/Warlord | Build established: Hauler-Assassin 12929 | -5/Warlord | Warlord's base attacked by MAIN.C 12964 | -5/Warlord | Found Signal Generator 12966 | -5/Warlord | Found Signal Generator 13186 | -5/Warlord | Found Prototype Energy Gun 13213 | -5/Warlord | Learned Armory emergency access door positions 13215 | -5/Warlord | Learned 4 Research zone layouts 13215 | -5/Warlord | Learned 4 Access zone layouts 13215 | -5/Warlord | Learned 4 Command zone layouts 13216 | -5/Warlord | Learned Research scanalyzer intel 13245 | -5/Warlord | Met Warlord 13279 | -5/Warlord | Warlord forces counterattacked 13772 | -5/Warlord | Destroyed by G-67 Veteran with Plasma Rifle Last Messages --------------- Mapping Drone destroyed. G-67 Veteran suffers critical hit. G-67 Veteran knocked back. Mapping Drone destroyed. G-50 Soldier destroyed. G-67 Veteran knocked back. NA-XFW(Y) destroyed. 8R-S10(Y) destroyed. E-15 Imp knocked back. G-67 Veteran destroyed. Segregator fries itself beyond repair. G-50 Soldier knocked back. Cesium-ion Thruster fries itself beyond repair. 1N-TNH(Y) destroyed. Acquired Cesium-ion Thruster. X-82 Rainmaker destroyed. Acquired 10 matter. Carbon-fiber Leg fries itself beyond repair. G-50 Soldier destroyed. Propulsion Shielding fries itself beyond repair. Map ----- +----------------------------------------------------+ | ###?#??#???????????#?## ???##?#??#??####?#??? | | ##?####??####???????## ?#????##??# ###??? | | #####?##?###????????# #?#???##??? ##?? | | #########?##????????# ##?#????? < #?? | | #############?#???#?# ??##???? ##? | | #########?#?######??# #?##?## ? #?#? | | #####################? ###?##?? #?### | | ######################## ##?###? #?#?# | | ######################### ##?#### ###??# | | ######################## ####### ####??# | | ######################## ##### #?##### | | ####################### ?##?## | | ######################### ### #?# ??#?? | | #######""################# ####? ## | | #######""################### #### ## | | #######""################### ##? ???### | | #######""#################### ### ### | | #######""##################### ### ##? | | #######""###################### #### ## | | # *""%% ################### ### ### | | != %[""%]! """""""""######### %=#%%#### | | =% ;!*%""!%%%! ""%""%#########=%%=*%%= # | | !!; !%%%%%! %BB%!%g!g%###!%###!=%*=%=#### | | =% !%%=%%=%%%BB=[*=!%%g%=%%%*%%!## #??# | | %;%% =%%[%%%== %g%%[[/=%*%===%##?# #### | | %%%% %%[%%=% e! =Y@####*%!%###?# #### | | #%%%""%%%""*""" *"=%"####%!=!##### #### | | # %=""%% """"""" """"#####%%%##### ### | | # "" "################*%#### # ### | | #######""####################=!### ### | | ####""################### %%### ### | | ####""################## ##? #### | | ####""################## #### ? #### | | ####""################# ##### ##### | | ####""################# ####?# ##?## | | ####################### ####### #?#?# | | ####################### #####?## ##### | | ####################### ######## #### | | ^ ###################### ###### #### | | ################ #### #### | | ################ ## ### ##?# | | " #######???## # #### ## #### | | "" #######?### #?## ## #### | | " #####????## #### ## ####? | | #???####?## ## #### ###?? | | #?????########## #?#### ####?# | | " #?????###?##### ###?#?########?## | | "" #######?###???#??#?######?###?#######?## | | " ####?#?#?##??##?#?## ?##?#??####????#?# | | ##????##?????#??###? ??########?##?#???# | +----------------------------------------------------+ Best States ------------- Heat Dissipation 54 Energy Generation 19 Energy Capacity 500 Matter Stores 300 Matter Capacity 300 Sight Range 23 Robot Scan Range 13 Terrain Scan Range 18 Terrain Scan Density 310 Jamming Range 12 Additional Mass Support 6 Armor Coverage 600 Resistance: KI 20 Resistance: TH 20 Weapon Shielding 33 Point Defense Rating 160 Reclamation Efficiency 10 Weapon Cycling 15 Evasion (%) 56 Targeting Accuracy 6 Core Analysis 6 Recoil Reduction 3 Particle Charging 15 Item Schematics ----------------- Hover Unit | -10/Mines | Hacked Robot Schematics ------------------ None Fabricated ------------ Nothing Alien Tech Used ----------------- None Achievements -------------- A Powerful Ally? Hey, That's Mine! Leap Before You Look Omniscient Cartographer Tank Challenges ------------ None Game ------ Seed GreatEnhancedRail Manual? 0 Play Time 05:46:36 Cumulative 48.5 hours Start 2019.11.04 @ 13:22:48 End 2019.11.05 @ 20:02:35 Sessions 5 Manual Loads 0 Difficulty Rogue Special Mode None Game No. 14 Rogue 14 Adventurer 0 Explorer 0 Win Type - Total 0 Types 0/0/0/0/0/0/0 Lore% 27 Gallery% 39 Achievement% 29 Wizard Run 0 Options --------- ASCII 1 Keyboard 0 Movement Numpad Keybinds 0 Fullscreen 1 Font 12/Smallcaps Map View 83x54 Tactical HUD 0 Map Filters NONE Filters NONE Steam 1 RUN: e0c94975-2922-4899-8530-fe97fba3a267